bitfinex/quotes_SOLUSD_20241209
["timestamp","ask_amount","ask_price","bid_price","bid_amount"]
[1733781738160,24.027864,218.29,218.27,56.50150575]
[1733781738377,24.027864,218.29,218.27,19.43220575]
[1733781738585,23.902374,218.29,218.27,16.53650575]
[1733781738895,0.12549,218.29,218.25,28.24002692]
[1733781739188,23.776884,218.31,218.21,35.84759017]
[1733781739386,23.776884,218.31,218.15,35.84759017]
[1733781739387,10.12549,218.3,218.15,35.84759017]
[1733781739689,0.12549,218.28,218.13,35.84759017]
[1733781739983,135.3,218.37,218.13,35.84759017]
[1733781739984,1.81841454,218.34,218.2,35.84759017]
[1733781740280,0.12549,218.29,218.2,35.84759017]
[1733781740494,20.0,218.26,218.18,35.84759017]
[1733781740693,0.12549,218.25,218.09,0.68740483]
[1733781740859,14.5801,218.34,218.15,35.84759017]
[1733781740860,10.0,218.32,218.15,35.84759017]
[1733781741184,6.40183248,218.34,218.09,0.68740483]
[1733781741185,20.0,218.25,218.09,0.68740483]
[1733781741385,0.12549,218.24,218.15,35.84759017]
[1733781741693,20.0,218.3,218.21,35.84759017]
[1733781741868,23.776884,218.29,218.19,35.84759017]
[1733781742182,23.776884,218.38,218.23,35.84759017]
[1733781742384,4.5797,218.36,218.23,35.84759017]
[1733781742601,0.12549,218.35,218.21,35.84759017]
[1733781743292,0.12549,218.35,218.23,35.84759017]
[1733781743461,20.0,218.34,218.23,35.84759017]
[1733781743661,20.0,218.3,218.21,35.84759017]
[1733781744078,20.0,218.26,218.17,35.84759017]
[1733781744257,23.776884,218.25,218.15,35.84759017]
[1733781744462,20.0,218.22,218.15,35.84759017]
[1733781744667,20.0,218.22,218.19,35.84759017]
[1733781745088,0.12549,218.27,218.09,72.3]
[1733781745390,0.12549,218.23,218.18,35.84759017]
[1733781745683,23.4359,218.28,218.22,35.84759017]
[1733781745883,0.12549,218.27,218.22,35.84759017]
[1733781746078,20.0,218.24,218.19,35.84759017]
[1733781746585,20.0,218.24,218.18,35.84759017]
[1733781746887,0.08472618,218.2,218.18,35.84759017]
[1733781747060,20.0,218.17,218.1,0.68732391]
[1733781747265,0.12549,218.09,217.96,35.84759017]
[1733781747463,0.12549,218.09,217.94,35.84759017]
[1733781747464,0.12549,218.07,217.94,35.84759017]
[1733781747681,0.12549,218.01,217.92,35.84759017]
[1733781747973,0.12549,218.01,217.8,108.14759017]
[1733781747974,20.0,217.94,217.73,18.372516]
[1733781748181,23.902374,217.92,217.78,36.39814397]
[1733781748384,20.0,217.89,217.78,0.5505538]
[1733781748576,20.0,217.89,217.8,35.84759017]
[1733781748771,1.87397916,217.94,217.82,35.84759017]
[1733781748976,0.12549,217.96,217.88,35.84759017]
[1733781749266,3.4394,218.06,217.95,35.84759017]
[1733781749485,3.4386,218.11,217.97,35.84759017]
[1733781749889,10.0,218.1,217.93,35.84759017]
[1733781750081,0.12549,218.08,217.93,35.84759017]
[1733781750286,3.4386,218.11,217.97,35.84759017]
[1733781750475,3.4386,218.11,217.91,35.84759017]
[1733781750476,10.0,218.09,217.95,35.84759017]
[1733781750774,3.4386,218.11,217.96,0.12549]
[1733781750976,3.4386,218.11,217.97,35.84759017]
[1733781751187,12.4867,218.13,217.99,35.84759017]
[1733781751500,12.4867,218.13,217.97,35.84759017]
[1733781751798,12.4867,218.13,218.02,0.12549]
[1733781752003,12.4867,218.13,217.99,35.84759017]
[1733781752369,12.4867,218.13,218.03,35.84759017]
[1733781752593,12.4867,218.13,218.01,35.84759017]
[1733781752888,0.08472618,218.2,218.07,35.84759017]
[1733781753102,0.08472618,218.2,218.09,35.84759017]
[1733781753282,0.12549,218.18,218.01,35.84759017]
[1733781753473,10.0,218.16,217.99,35.84759017]
[1733781753675,13.4384,218.13,217.99,35.84759017]
[1733781753990,3.4384,218.13,217.97,35.84759017]
[1733781754195,23.902374,218.12,217.97,35.84759017]
[1733781754369,20.0,218.11,217.99,35.84759017]
[1733781754566,0.12549,218.1,218.02,35.84759017]
[1733781754898,23.4377,218.17,218.06,35.84759017]
[1733781755090,23.4377,218.17,218.04,35.84759017]
[1733781755394,5.3040521,218.17,218.04,35.84759017]
[1733781755593,3.4377,218.17,218.06,35.84759017]
[1733781755994,0.08472618,218.2,218.08,35.84759017]
[1733781756198,0.08472618,218.2,218.15,35.84759017]
[1733781756507,0.08472618,218.2,218.17,35.84759017]
[1733781756681,0.08472618,218.2,218.19,35.84759017]
[1733781758900,0.08472618,218.2,218.19,35.97308017]
[1733781759275,0.08472618,218.2,218.19,59.74996417]
[1733781759595,0.08472618,218.2,218.19,60.43707902]
[1733781760310,0.08472618,218.2,218.19,36.66019502]
[1733781760472,0.08472618,218.2,218.19,35.97308017]
[1733781760673,0.10044892,218.23,218.19,35.97308017]
[1733781760674,5.055e-05,218.23,218.2,10.25098]
[1733781760981,5.055e-05,218.23,218.22,71.94616034]
[1733781761374,5.055e-05,218.23,218.22,71.82067034]
[1733781761779,5.055e-05,218.23,218.22,72.50763694]
[1733781761978,1.204e-05,218.26,218.25,20.12549]
[1733781762190,1.204e-05,218.26,218.25,36.78542466]
[1733781762505,1.204e-05,218.26,218.25,36.65993466]
[1733781762679,1.204e-05,218.26,218.25,0.81234449]
[1733781762996,1.204e-05,218.26,218.24,35.84759017]
[1733781763198,1.204e-05,218.26,218.2,35.84759017]
[1733781763373,20.0,218.24,218.12,35.84759017]
[1733781763574,20.0,218.18,218.08,35.84759017]
[1733781763882,0.12549,218.17,218.06,35.84759017]
[1733781764202,0.12549,218.17,217.96,84.6058]
[1733781764203,23.902374,218.13,217.89,20.0]
[1733781764377,0.12549,218.09,217.98,35.84759017]
[1733781764571,20.0,218.1,218.02,35.84759017]
[1733781764780,0.12549,218.09,218.02,35.84759017]
[1733781765377,0.12549,218.09,217.92,0.68802191]
[1733781765378,3.4376,218.17,218.04,35.84759017]
[1733781765606,0.12549,218.16,218.08,35.84759017]
[1733781766406,0.12549,218.16,218.06,35.84759017]
[1733781766707,0.08608652,218.09,218.03,0.12549]
[1733781766882,0.08608652,218.09,218.08,35.84759017]
[1733781767189,0.08608652,218.09,218.08,35.97308017]
[1733781767776,8.652e-05,218.09,218.08,46.09857017]
[1733781767980,0.08435011,218.12,218.11,0.12549]
[1733781768185,0.09938271,218.13,218.12,20.12549]
[1733781768384,3.4347,218.36,218.13,40.25098]
[1733781768681,13.4347,218.36,218.15,20.12549]
[1733781768881,3.4347,218.36,218.15,20.12549]
[1733781769185,16.284,218.41,218.18,20.25098]
[1733781769497,16.284,218.41,218.31,35.84759017]
[1733781770805,28.4189,218.51,218.37,35.84759017]
[1733781770999,12.1349,218.51,218.37,35.84759017]
[1733781771205,22.1349,218.51,218.37,35.84759017]
[1733781771531,23.99003859,218.51,218.35,35.84759017]
[1733781772016,0.12549,218.5,218.35,35.84759017]
[1733781772313,20.0,218.48,218.37,35.84759017]
[1733781772512,12.1349,218.51,218.44,35.84759017]
[1733781773532,10.0,218.63,218.5,35.84759017]
[1733781773533,3.4312,218.58,218.5,35.84759017]
[1733781774729,3.4306,218.62,218.5,35.84759017]
[1733781775092,3.4306,218.62,218.52,35.84759017]
[1733781775296,13.97367846,218.63,218.54,35.84759017]
[1733781775605,3.4299,218.67,218.54,35.97308017]
[1733781775807,54.55901391,218.72,218.54,35.97308017]
[1733781776149,3.4292,218.71,218.54,35.97308017]
[1733781776828,10.0,218.66,218.54,35.84759017]
[1733781777015,13.94200713,218.72,218.54,35.84759017]
[1733781777201,3.4296,218.68,218.54,35.84759017]
[1733781777408,13.94200713,218.72,218.54,35.97308017]
[1733781777937,10.0,218.63,218.54,35.84759017]
[1733781778242,13.43,218.66,218.53,35.84759017]
[1733781778542,3.43,218.66,218.54,0.12549]
[1733781778718,20.0,218.62,218.53,35.84759017]
[1733781779124,0.12549,218.54,218.49,35.84759017]
[1733781779303,20.0,218.54,218.49,35.84759017]
[1733781779508,20.0,218.58,218.53,35.84759017]
[1733781779911,33.4303,218.64,218.53,35.84759017]
[1733781780118,20.0,218.59,218.51,35.84759017]
[1733781780324,20.0,218.59,218.53,35.84759017]
[1733781780509,20.0,218.59,218.49,35.84759017]
[1733781780706,3.4312,218.59,218.53,35.84759017]
[1733781780930,20.0,218.66,218.53,35.84759017]
[1733781781210,3.4298,218.67,218.54,0.12549]
[1733781781536,18.319554,218.75,218.54,72.50682868]
[1733781781831,10.0,218.73,218.62,35.84759017]
[1733781782053,10.0,218.73,218.6,35.84759017]
[1733781782206,10.0,218.73,218.58,35.84759017]
[1733781782411,10.0,218.75,218.6,35.84759017]
[1733781782611,10.0,218.75,218.53,0.12549]
[1733781782612,3.4283,218.77,218.67,35.84759017]
[1733781783051,0.5505538,218.78,218.72,35.84759017]
[1733781783225,0.5505538,218.78,218.73,35.84759017]
[1733781783535,0.5505538,218.78,218.76,35.84759017]
[1733781783938,0.5505538,218.78,218.73,35.84759017]
[1733781784132,0.5505538,218.78,218.72,35.84759017]
[1733781784335,0.5505538,218.78,218.75,35.84759017]
[1733781784532,0.5505538,218.78,218.73,35.84759017]
[1733781784839,0.5505538,218.78,218.75,35.84759017]
[1733781785050,0.5505538,218.78,218.77,35.84759017]
[1733781785234,0.5505538,218.78,218.77,35.97308017]
[1733781785416,0.5505538,218.78,218.77,71.82067034]
[1733781785619,0.5505538,218.78,218.77,35.84759017]
[1733781785920,0.5505538,218.78,218.77,71.82067034]
[1733781786112,0.5505538,218.78,218.77,35.84759017]
[1733781786734,0.64830368,218.78,218.77,35.84759017]
[1733781788140,0.64830368,218.78,218.77,35.97308017]
[1733781788347,0.64830368,218.78,218.77,36.65837118]
[1733781788723,0.64830368,218.78,218.77,36.53288118]
[1733781789218,0.64830368,218.78,218.77,36.65837118]
[1733781789419,0.64830368,218.78,218.77,168.70833535]
[1733781789741,0.08863824,218.84,218.83,10.12549]
[1733781789941,0.5505538,219.0,218.89,20.12549]
[1733781790122,0.5505538,219.0,218.91,0.12549]
[1733781790322,0.5505538,219.0,218.9,35.84759017]
[1733781790530,7.1760438,219.03,218.87,38.67154637]
[1733781790725,14.37156908,219.11,218.95,2.8239562]
[1733781790726,3.4238,219.05,218.95,2.8239562]
[1733781790952,5.21558289,219.1,218.96,35.84759017]
[1733781791558,5.21558289,219.1,218.95,38.67154637]
[1733781791744,17.1760438,219.07,218.91,2.8239562]
[1733781791949,17.1760438,219.07,218.88,2.8239562]
[1733781792139,37.1760438,219.02,218.88,2.8239562]
[1733781792322,43.776884,218.97,218.83,2.8239562]
[1733781792515,43.776884,218.97,218.76,72.3]
[1733781792516,20.0,218.9,218.79,2.8239562]
[1733781792724,23.776884,218.85,218.77,2.8239562]
[1733781792917,0.12549,218.81,218.74,2.8239562]
[1733781793133,23.902374,218.77,218.7,2.8239562]
[1733781793447,20.0,218.74,218.66,2.8239562]
[1733781793754,20.0,218.7,218.64,2.8239562]
[1733781793918,23.902374,218.69,218.62,2.8239562]
[1733781794341,3.4283,218.77,218.68,2.8239562]
[1733781794543,23.902374,218.72,218.65,2.8239562]
[1733781794718,20.0,218.65,218.59,2.8239562]
[1733781794923,0.12549,218.6,218.52,2.8239562]
[1733781795135,23.902374,218.56,218.48,2.8239562]
[1733781795330,0.12549,218.56,218.49,2.8239562]
[1733781795542,0.12549,218.56,218.47,35.84759017]
[1733781795543,0.12549,218.65,218.59,2.8239562]
[1733781795760,43.902374,218.68,218.57,38.67154637]
[1733781795920,0.12549,218.65,218.53,38.67154637]
[1733781796125,23.902374,218.62,218.53,2.8239562]
[1733781796445,23.902374,218.62,218.56,2.8239562]
[1733781796654,20.0,218.59,218.53,35.84759017]
[1733781796948,0.12549,218.62,218.55,2.8239562]
[1733781797123,23.902374,218.65,218.54,2.8239562]
[1733781797326,0.12549,218.61,218.54,2.8239562]
[1733781797547,20.0,218.62,218.58,2.8239562]
[1733781797940,0.12549,218.61,218.55,35.84759017]
[1733781798131,0.12549,218.69,218.61,2.8239562]
[1733781798336,20.0,218.66,218.59,2.8239562]
[1733781798536,0.12549,218.61,218.54,2.8239562]
[1733781798741,0.12549,218.61,218.56,2.8239562]
[1733781799267,3.429,218.72,218.56,2.8239562]
[1733781799467,3.4283,218.77,218.63,2.8239562]
[1733781799748,17.1760438,218.7,218.57,2.8239562]
[1733781800063,12.44778641,218.77,218.61,2.8239562]
[1733781800427,12.44778641,218.77,218.58,38.67154637]
[1733781800428,7.1760438,218.75,218.58,38.67154637]
[1733781800622,20.0,218.67,218.54,2.8239562]
[1733781800925,7.1760438,218.7,218.54,2.8239562]
[1733781800926,0.12549,218.7,218.6,2.8239562]
[1733781801156,0.12549,218.66,218.61,2.8239562]
[1733781801342,20.0,218.69,218.66,2.8239562]
[1733781801650,1.80733794,218.81,218.7,2.8239562]
[1733781801950,6.8529,218.89,218.63,38.67154637]
[1733781801951,7.1760438,218.8,218.63,38.67154637]
[1733781802128,7.1760438,218.81,218.67,2.8239562]
[1733781802444,0.12549,218.78,218.63,2.8239562]
[1733781802652,0.12549,218.73,218.58,2.8239562]
[1733781802826,0.25098,218.73,218.59,2.8239562]
[1733781803025,18.313818,218.83,218.55,2.8239562]
[1733781803026,0.12549,218.67,218.55,2.8239562]
[1733781803254,0.12549,218.64,218.53,2.8239562]
[1733781803426,20.0,218.57,218.52,2.8239562]
[1733781803622,0.12549,218.56,218.52,2.8239562]
[1733781804043,0.12549,218.56,218.47,35.84759017]
[1733781804044,20.0,218.53,218.45,3.3468802]
[1733781804253,23.902374,218.48,218.45,0.522924]
[1733781804552,0.12549,218.67,218.54,2.8239562]
[1733781804726,20.0,218.65,218.53,2.8239562]
[1733781804925,20.0,218.65,218.55,2.8239562]
[1733781805126,0.12549,218.67,218.61,2.8239562]
[1733781805335,3.429,218.72,218.58,2.8239562]
[1733781805546,3.429,218.72,218.45,11.967024]
[1733781805547,0.12549,218.66,218.52,2.8239562]
[1733781805753,0.12549,218.66,218.55,2.8239562]
[1733781805925,0.12549,218.66,218.57,2.8239562]
[1733781806127,5.261347,218.72,218.61,2.8239562]
[1733781806326,3.4284,218.77,218.67,2.8239562]
[1733781806552,3.4284,218.77,218.63,2.8239562]
[1733781806755,0.09338167,218.62,218.59,2.8239562]
[1733781807061,0.09338167,218.62,218.54,38.67154637]
[1733781807241,0.09338167,218.62,218.46,35.84759017]
[1733781807242,0.09338167,218.62,218.52,38.67154637]
[1733781807552,0.09338167,218.62,218.61,38.67154637]
[1733781808241,0.09338167,218.62,218.61,2.8239562]
[1733781808445,0.09338167,218.62,218.61,38.67154637]
[1733781809526,0.09338167,218.62,218.59,38.67154637]
[1733781809728,0.09338167,218.62,218.61,38.67154637]
[1733781810131,0.09338167,218.62,218.61,38.79703637]
[1733781810647,0.09338167,218.62,218.61,38.67154637]
[1733781810839,0.09338167,218.62,218.61,2.8239562]
[1733781811040,0.09338167,218.62,218.61,38.67154637]
[1733781811229,0.09338167,218.62,218.61,38.79703637]
[1733781811430,10.0,218.88,218.73,2.8239562]
[1733781811758,10.0,218.88,218.6,94.42245412]
[1733781811759,1.830445,218.9,218.79,2.8239562]
[1733781811971,22.7373,218.92,218.77,38.67154637]
[1733781812130,22.7373,218.92,218.69,72.3]
[1733781812131,17.1760438,218.89,218.73,38.67154637]
[1733781812331,12.7373,218.92,218.77,2.8239562]
[1733781812332,10.0,218.9,218.77,2.8239562]
[1733781812770,0.12549,218.89,218.74,2.8239562]
[1733781813068,10.2782,218.91,218.78,2.8239562]
[1733781813257,17.1760438,218.87,218.74,2.8239562]
[1733781813457,0.12549,218.86,218.72,2.8239562]
[1733781813764,0.12549,218.8,218.68,2.8239562]
[1733781814272,0.12549,218.81,218.68,2.8239562]
[1733781814563,20.0,218.79,218.72,2.8239562]
[1733781814775,20.0,218.79,218.57,43.48029017]
[1733781814776,43.902374,218.78,218.65,2.8239562]
[1733781814980,0.12549,218.69,218.63,2.8239562]
[1733781815132,20.0,218.66,218.63,2.8239562]
[1733781815863,24.027864,218.69,218.63,2.8239562]
[1733781816035,17.1760438,218.79,218.68,2.8239562]
[1733781816036,20.0,218.74,218.68,2.8239562]
[1733781816231,23.902374,218.73,218.66,2.8239562]
[1733781816435,24.027864,218.73,218.66,2.8239562]
[1733781816842,3.4285,218.76,218.65,35.84759017]
[1733781816843,23.776884,218.75,218.69,2.8239562]
[1733781817063,23.776884,218.75,218.6,20.0]
[1733781817064,12.7373,218.92,218.85,2.8239562]
[1733781817238,3.4259,218.92,218.82,38.67154637]
[1733781817439,3.4259,218.92,218.82,2.8239562]
[1733781817864,0.12549,218.91,218.8,38.67154637]
[1733781818171,3.4259,218.92,218.8,38.67154637]
[1733781818172,10.0,218.9,218.8,2.8239562]
[1733781818354,0.12549,218.89,218.76,2.8239562]
[1733781818548,3.4259,218.92,218.78,2.8239562]
[1733781819051,7.3015338,218.91,218.78,2.8239562]
[1733781819382,23.902374,218.91,218.8,2.8239562]
[1733781819568,3.4259,218.92,218.8,2.8239562]
[1733781819754,10.2777,218.92,218.8,2.8239562]
[1733781820076,10.0,218.91,218.78,2.8239562]
[1733781820244,0.12549,218.9,218.8,2.8239562]
[1733781820445,0.12549,218.9,218.77,2.8239562]
[1733781820643,0.12549,218.85,218.75,2.8239562]
[1733781820850,20.0,218.81,218.77,2.8239562]
[1733781821281,0.12549,218.8,218.77,2.8239562]
[1733781821445,20.0,218.77,218.75,2.8239562]
[1733781821942,3.4266,218.87,218.79,2.8239562]
[1733781822264,3.4266,218.87,218.81,2.8239562]
[1733781822792,8.69218381,218.92,218.83,2.8239562]
[1733781822793,3.426,218.91,218.83,2.8239562]
[1733781823080,0.12549,218.9,218.81,2.8239562]
[1733781823387,0.12549,218.9,218.79,2.8239562]
[1733781823544,7.3015338,218.9,218.77,2.8239562]
[1733781823747,7.3015338,218.9,218.74,35.84759017]
[1733781823748,10.2781,218.91,218.79,2.8239562]
[1733781823972,23.776884,218.9,218.79,2.8239562]
[1733781824175,0.12549,218.89,218.81,2.8239562]
[1733781824568,0.12549,218.89,218.83,2.8239562]
[1733781825359,3.426,218.91,218.86,2.8239562]
[1733781825575,3.426,218.91,218.84,2.8239562]
[1733781825772,0.12549,218.9,218.84,2.8239562]
[1733781826145,0.12549,218.88,218.79,2.8239562]
[1733781826350,0.12549,218.86,218.76,2.8239562]
[1733781826573,0.12549,218.8,218.65,2.8239562]
[1733781826752,0.33583722,218.8,218.69,2.8239562]
[1733781826955,0.12549,218.74,218.66,35.84759017]
[1733781827156,0.12549,218.74,218.58,43.59089017]
[1733781827157,23.902374,218.66,218.58,43.59089017]
[1733781827480,23.902374,218.66,218.47,10.0]
[1733781827481,24.027864,218.58,218.51,38.67154637]
[1733781827684,20.0,218.55,218.51,2.8239562]
[1733781827884,20.0,218.62,218.56,2.8239562]
[1733781828263,0.25098,218.57,218.53,2.8239562]
[1733781828463,0.12549,218.57,218.5,2.8239562]
[1733781828693,20.0,218.54,218.5,2.8239562]
[1733781829190,0.12549,218.53,218.5,2.8239562]
[1733781829371,0.12549,218.53,218.46,2.8239562]
[1733781829372,24.027864,218.53,218.46,2.8239562]
[1733781829583,23.902374,218.49,218.45,0.522924]
[1733781829757,20.0,218.46,218.45,0.522924]
[1733781829983,20.0,218.54,218.45,3.3468802]
[1733781830187,24.027864,218.49,218.45,3.3468802]
[1733781830675,20.12549,218.46,218.45,0.522924]
[1733781830874,20.0,218.46,218.45,0.522924]
[1733781831099,44.027864,218.46,218.45,0.522924]
[1733781831681,20.12549,218.46,218.45,3.3468802]
[1733781832125,20.12549,218.46,218.45,0.522924]
[1733781832779,20.0,218.46,218.45,0.522924]
[1733781833280,20.12549,218.46,218.45,0.522924]
[1733781833985,6.8638,218.54,218.45,0.522924]
[1733781833986,7.1760438,218.68,218.55,2.8239562]
[1733781834320,3.4302,218.65,218.6,2.8239562]
[1733781834506,1.88320258,218.69,218.62,2.8239562]
[1733781834678,3.4288,218.73,218.64,2.8239562]
[1733781834882,10.2865,218.73,218.58,2.8239562]
[1733781835108,20.2865,218.73,218.6,2.8239562]
[1733781835310,20.2865,218.73,218.52,35.84759017]
[1733781835311,10.0,218.68,218.56,2.8239562]
[1733781835605,10.0,218.68,218.58,2.8239562]
[1733781835815,10.0,218.69,218.56,2.8239562]
[1733781836022,3.4296,218.68,218.62,2.8239562]
[1733781836181,3.4296,218.68,218.6,2.8239562]
[1733781836382,0.12549,218.67,218.6,2.8239562]
[1733781836584,3.4296,218.68,218.64,2.8239562]
[1733781836783,3.4289,218.73,218.65,2.8239562]
[1733781836982,3.4289,218.73,218.68,2.8239562]
[1733781837177,3.4289,218.73,218.57,35.84759017]
[1733781837178,3.4289,218.73,218.7,2.8239562]
[1733781837387,3.4289,218.73,218.68,2.8239562]
[1733781837598,0.12549,218.72,218.66,2.8239562]
[1733781837802,3.4289,218.73,218.66,2.8239562]
[1733781838509,0.12549,218.72,218.66,2.8239562]
[1733781838733,0.12549,218.72,218.61,2.8239562]
[1733781838885,0.12549,218.72,218.6,2.8239562]
[1733781838886,10.0,218.71,218.6,2.8239562]
[1733781839085,0.12549,218.67,218.6,2.8239562]
[1733781839609,0.12549,218.59,218.55,2.8239562]
[1733781839813,24.027864,218.59,218.55,2.8239562]
[1733781839984,20.0,218.56,218.55,2.8239562]
[1733781840381,0.12549,218.59,218.55,2.8239562]
[1733781840582,20.0,218.69,218.63,2.8239562]
[1733781840986,8.66626109,218.72,218.66,2.8239562]
[1733781841185,3.4287,218.74,218.64,2.8239562]
[1733781841394,0.12549,218.72,218.58,2.8239562]
[1733781841702,0.12549,218.69,218.58,2.8239562]
[1733781841917,10.0,218.66,218.54,2.8239562]
[1733781842091,0.12549,218.63,218.51,7.7433]
[1733781842283,20.12549,218.58,218.46,2.8239562]
[1733781842488,20.12549,218.58,218.41,35.84759017]
[1733781842489,23.902374,218.51,218.41,2.8239562]
[1733781842688,3.4315,218.56,218.41,2.8239562]
[1733781842689,23.902374,218.43,218.41,2.8239562]
[1733781842918,10.2946,218.56,218.46,2.8239562]
[1733781843193,0.12549,218.51,218.42,2.8239562]
[1733781843420,0.12549,218.51,218.47,2.8239562]
[1733781843616,0.12549,218.51,218.44,2.8239562]
[1733781843929,0.12549,218.45,218.37,2.8239562]
[1733781844232,0.12549,218.45,218.39,2.8239562]
[1733781844233,0.12549,218.41,218.39,2.8239562]
[1733781844397,20.0,218.38,218.37,2.8239562]
[1733781844587,20.0,218.38,218.35,2.8239562]
[1733781844901,20.0,218.34,218.31,10.5715562]
[1733781845133,20.0,218.34,218.33,2.8239562]
[1733781845367,6.8659,218.47,218.33,2.8239562]
[1733781845368,23.902374,218.41,218.33,2.8239562]
[1733781845569,20.0,218.38,218.35,2.8239562]
[1733781845863,20.0,218.34,218.31,10.5715562]
[1733781846036,24.027864,218.33,218.29,2.8239562]
[1733781846235,20.0,218.3,218.29,2.8239562]
[1733781846856,23.902374,218.29,218.27,2.8239562]
[1733781847067,23.902374,218.37,218.34,2.8239562]
[1733781847364,23.902374,218.37,218.31,2.8239562]
[1733781847365,0.12549,218.33,218.31,2.8239562]
[1733781847522,20.0,218.34,218.33,2.8239562]
[1733781847723,1.80065955,218.46,218.44,2.8239562]
[1733781847924,6.8637,218.54,218.44,2.8239562]
[1733781848168,0.12549,218.51,218.42,2.8239562]
[1733781848367,0.12549,218.53,218.42,2.8239562]
[1733781848660,0.12549,218.49,218.35,2.8239562]
[1733781849027,0.12549,218.43,218.32,2.8239562]
[1733781849227,0.12549,218.43,218.29,2.8239562]
[1733781849228,23.902374,218.41,218.29,2.8239562]
[1733781849452,24.027864,218.37,218.31,2.8239562]
[1733781849655,0.12549,218.33,218.29,2.8239562]
[1733781849821,20.0,218.34,218.33,2.8239562]
[1733781850033,20.0,218.34,218.22,37.10824981]
[1733781850034,20.12549,218.34,218.31,2.8239562]
[1733781850222,0.12549,218.34,218.29,2.8239562]
[1733781850427,3.56049,218.34,218.29,2.8239562]
[1733781850660,0.12549,218.33,218.29,2.8239562]
[1733781850864,0.25098,218.33,218.3,2.8239562]
[1733781851172,24.027864,218.33,218.27,2.8239562]
[1733781851339,0.25098,218.29,218.22,0.5736482]
[1733781851546,20.25098,218.29,218.22,0.5736482]
[1733781851724,20.25098,218.29,218.12,12.939]
[1733781851725,0.12549,218.24,218.17,0.2348307]
[1733781851929,0.12549,218.23,218.17,0.1396745]
[1733781852268,20.12549,218.24,218.21,0.0951562]
[1733781852426,0.12549,218.22,218.19,0.0951562]
[1733781852626,20.0,218.19,218.17,0.2348307]
[1733781853062,0.12549,218.18,218.17,0.2348307]
[1733781853268,0.12549,218.22,218.17,0.2348307]
[1733781853437,0.12549,218.18,218.17,0.1396745]
[1733781854377,20.0,218.19,218.18,0.0951562]
[1733781854530,0.12549,218.19,218.18,0.0951562]
[1733781854727,10.0,218.37,218.26,0.0951562]
[1733781854926,10.3026,218.39,218.3,0.0951562]
[1733781855183,3.4342,218.39,218.34,0.0951562]
[1733781855459,1.84993214,218.47,218.42,0.0951562]
[1733781855668,12.380317,218.53,218.48,0.0951562]
[1733781855861,5.30379605,218.53,218.44,0.0951562]
[1733781856069,3.4321,218.53,218.47,0.0951562]
[1733781856240,3.4321,218.53,218.49,0.0951562]
[1733781856435,3.4321,218.53,218.46,0.0951562]
[1733781856829,3.4321,218.53,218.42,0.0951562]
[1733781857045,3.4321,218.53,218.35,0.68658693]
[1733781857046,3.4321,218.53,218.46,0.0951562]
[1733781857253,3.4321,218.53,218.38,0.0951562]
[1733781857254,0.12549,218.52,218.38,0.0951562]
[1733781857465,0.12549,218.44,218.36,0.0951562]
[1733781857633,0.12549,218.44,218.34,0.0951562]
[1733781857843,0.12549,218.42,218.34,0.0951562]
[1733781858140,0.12549,218.39,218.36,0.0951562]
[1733781858357,0.12549,218.39,218.34,0.0951562]
[1733781858682,20.0,218.36,218.34,0.0951562]
[1733781858865,0.12549,218.31,218.2,8.47563652]
[1733781859034,0.12549,218.31,218.2,7.7886]
[1733781859367,44.027864,218.31,218.2,7.7886]
[1733781859540,0.12549,218.29,218.2,7.7886]
[1733781859742,0.12549,218.25,218.2,7.7886]
[1733781860067,3.4365,218.24,218.2,7.7886]
[1733781860275,0.12549,218.23,218.17,0.1396745]
[1733781860581,20.0,218.26,218.17,0.1396745]
[1733781860875,20.0,218.26,218.18,35.84759017]
[1733781861048,3.4359,218.28,218.19,0.68725341]
[1733781861438,0.12549,218.27,218.17,0.1396745]
[1733781862280,0.25098,218.25,218.17,0.1396745]
[1733781862569,0.12549,218.21,218.17,0.1396745]
[1733781862769,24.027864,218.21,218.08,7.9488]
[1733781862936,0.25098,218.17,218.08,7.9488]
[1733781863134,0.25098,218.13,217.99,36.53534112]
[1733781863370,44.027864,218.13,217.97,7.9488]
[1733781863652,20.12549,218.13,217.99,35.84759017]
[1733781863866,0.12549,218.13,218.0,0.68777119]
[1733781864038,24.027864,218.08,217.97,7.9488]